bitfinex/quotes_SOLUSD_20220226
["timestamp","ask_amount","ask_price","bid_price","bid_amount"]
[1645897540197,2.74678921,90.751,90.644,2.45208416]
[1645897540594,4.41,90.75,90.644,2.45208416]
[1645897540797,4.41,90.75,90.646,109.5]
[1645897541195,4.41,90.75,90.647,3.05284401]
[1645897541496,20.9551,90.75,90.647,3.05284401]
[1645897542795,16.5451,90.75,90.648,4.41]
[1645897542999,4.41,90.749,90.647,3.05284401]
[1645897543196,16.5474,90.74,90.648,4.41]
[1645897543399,23.1953,90.739,90.648,4.41]
[1645897543995,23.1953,90.739,90.647,3.05284401]
[1645897544499,23.1953,90.739,90.65,16.5461]
[1645897544707,16.5488,90.73,90.645,56.69170286]
[1645897544897,16.5488,90.73,90.646,2.87228156]
[1645897545397,16.5488,90.73,90.647,4.41]
[1645897545597,16.5488,90.73,90.646,2.87228156]
[1645897546200,4.41,90.738,90.646,2.87228156]
[1645897546399,22.28967573,90.765,90.661,109.5]
[1645897546400,4.41,90.765,90.661,109.5]
[1645897546600,4.409,90.808,90.663,109.5]
[1645897546800,15.98,90.8,90.665,109.5]
[1645897546998,4.409,90.799,90.671,109.5]
[1645897547199,4.409,90.799,90.674,109.5]
[1645897547399,23.8264,90.798,90.676,109.5]
[1645897547600,16.5414,90.77,90.677,4.409]
[1645897547900,22.28967573,90.788,90.677,4.409]
[1645897547901,46.323,90.769,90.677,4.409]
[1645897548702,46.323,90.769,90.678,2.74678921]
[1645897549301,46.323,90.769,90.679,4.409]
[1645897549501,46.323,90.769,90.68,16.5408]
[1645897549702,46.323,90.769,90.681,3.02397536]
[1645897551507,46.323,90.769,90.682,2.74678921]
[1645897551907,46.323,90.769,90.681,112.52397536]
[1645897552107,46.323,90.769,90.682,2.74678921]
[1645897552507,46.15520048,90.769,90.682,2.74678921]
[1645897552707,46.15520048,90.769,90.691,2.52950948]
[1645897552909,46.15520048,90.769,90.691,112.02950948]
[1645897553110,46.15520048,90.769,90.692,2.60639869]
[1645897553312,46.15520048,90.769,90.692,5.3531879]
[1645897553512,46.15520048,90.769,90.692,112.24678921]
[1645897553715,46.15520048,90.769,90.693,5.12012699]
[1645897554112,46.15520048,90.769,90.694,2.74678921]
[1645897554512,46.15520048,90.769,90.701,109.5]
[1645897554713,46.15520048,90.769,90.703,109.5]
[1645897554913,46.15520048,90.769,90.704,2.43368546]
[1645897555540,16.5393,90.79,90.705,2.74678921]
[1645897555738,23.1929,90.789,90.705,2.74678921]
[1645897555937,23.1929,90.789,90.71,16.5365]
[1645897556139,23.1929,90.789,90.712,2.91457471]
[1645897556939,0.05344684,90.783,90.712,2.91457471]
[1645897558748,0.05344684,90.783,90.721,109.5]
[1645897558945,0.05344684,90.783,90.722,2.28235948]
[1645897559842,0.05344684,90.783,90.73,16.5332]
[1645897560241,0.05344684,90.783,90.731,49.99173263]
[1645897560443,0.05344684,90.783,90.732,2.47050802]
[1645897561845,0.05344684,90.783,90.732,111.97050802]
[1645897562046,0.05344684,90.783,90.733,2.81128865]
[1645897562245,0.00344684,90.783,90.741,109.5]
[1645897562549,0.00344684,90.783,90.742,2.85874825]
[1645897562747,0.00344684,90.783,90.743,109.5]
[1645897562945,0.00344684,90.783,90.744,2.86505205]
[1645897563349,0.00344684,90.783,90.745,2.74678921]
[1645897563551,0.00344684,90.783,90.752,2.69057648]
[1645897563950,0.00344684,90.783,90.753,2.74678921]
[1645897565349,0.00344684,90.783,90.753,112.24678921]
[1645897565549,0.00344684,90.783,90.761,109.5]
[1645897565848,0.00344684,90.783,90.762,2.82914769]
[1645897566553,0.00344684,90.783,90.755,109.5]
[1645897566750,0.00344684,90.783,90.756,3.01184395]
[1645897567249,0.00344684,90.783,90.757,2.74678921]
[1645897567453,0.00344684,90.783,90.77,16.5249]
[1645897567652,22.64394684,90.838,90.771,2.83154088]
[1645897568252,22.14394684,90.838,90.771,2.83154088]
[1645897570653,22.14394684,90.838,90.755,3.05050371]
[1645897571454,22.14394684,90.838,90.755,112.55050371]
[1645897571658,22.14394684,90.838,90.761,109.5]
[1645897571854,22.14394684,90.838,90.762,2.3854411]
[1645897572056,21.64394684,90.838,90.762,2.3854411]
[1645897573255,21.64394684,90.838,90.755,2.60310465]
[1645897573756,21.64394684,90.838,90.755,109.5]
[1645897573955,21.64394684,90.838,90.756,2.83022179]
[1645897574355,4.405,90.869,90.759,109.5]
[1645897574556,4.405,90.869,90.76,0.25]
[1645897574756,4.405,90.869,90.76,2.93911724]
[1645897575254,48.7742,90.868,90.762,112.59556878]
[1645897575454,4.404,90.867,90.763,2.39981424]
[1645897575655,48.7742,90.868,90.763,2.39981424]
[1645897576556,16.525,90.86,90.763,2.39981424]
[1645897576956,16.525,90.86,90.763,68.23981424]
[1645897577157,48.7742,90.868,90.769,2.29513381]
[1645897577358,48.7742,90.868,90.771,112.20155991]
[1645897577556,48.7742,90.868,90.78,16.5214]
[1645897577757,48.7742,90.868,90.782,47.91439601]
[1645897577956,48.7742,90.868,90.783,2.27216471]
[1645897578357,48.7742,90.868,90.783,111.77216471]
[1645897578558,48.7742,90.868,90.784,2.81101342]
[1645897578758,48.7742,90.868,90.792,2.75356479]
[1645897579760,48.7742,90.868,90.784,109.5]
[1645897579962,48.7742,90.868,90.785,2.7617285]
[1645897580561,48.7742,90.868,90.801,109.5]
[1645897580760,48.7742,90.868,90.802,2.96164288]
[1645897583964,48.7742,90.868,90.783,16.2566]
[1645897584264,48.7742,90.868,90.784,2.44041685]
[1645897584864,48.7742,90.868,90.784,111.94041685]
[1645897585068,48.7742,90.868,90.785,2.96786124]
[1645897588466,48.7742,90.868,90.791,109.5]
[1645897588666,48.7742,90.868,90.792,3.19544318]
[1645897589065,48.7742,90.868,90.792,2.94544318]
[1645897589470,48.7742,90.868,90.801,111.90368926]
[1645897589668,48.7742,90.868,90.801,109.5]
[1645897589868,48.7742,90.868,90.802,2.33642965]
[1645897590569,48.7742,90.868,90.784,113.902]
[1645897590771,2.74678921,90.901,90.79,109.5]
[1645897591071,65.84,90.976,90.785,0.25]
[1645897591072,24.5945,90.907,90.819,109.5]
[1645897591271,24.5945,90.907,90.831,109.5]
[1645897591471,24.5945,90.907,90.82,31.66424214]
[1645897591472,24.5945,90.907,90.833,109.5]
[1645897591670,24.5945,90.907,90.834,4.401]
[1645897591873,24.5945,90.907,90.835,109.5]
[1645897592170,24.5945,90.907,90.836,4.401]
[1645897592369,24.5945,90.907,90.825,16.4869]
[1645897592570,24.5945,90.907,90.799,2.74678921]
[1645897592774,1.80797976,90.906,90.79,4.402]
[1645897592971,4.402,90.905,90.784,2.6131893]
[1645897593270,109.5,90.899,90.784,2.6131893]
[1645897593470,15.98,90.89,90.784,2.6131893]
[1645897593672,5.96819715,90.889,90.782,16.546]
[1645897593872,5.96819715,90.889,90.776,2.58420108]
[1645897593873,1.52654568,90.888,90.776,2.58420108]
[1645897594079,1.52654568,90.888,90.757,3.01351166]
[1645897594080,4.402,90.887,90.757,3.01351166]
[1645897594274,5.90184143,90.887,90.758,4.404]
[1645897594474,1.24694778,90.886,90.758,4.404]
[1645897594673,4.404,90.885,90.757,3.01351166]
[1645897594876,65.84,90.883,90.757,3.01351166]
[1645897595075,65.84,90.883,90.741,4.404]
[1645897595076,109.5,90.861,90.742,2.49145969]
[1645897595279,109.5,90.849,90.704,109.5]
[1645897595475,175.34,90.839,90.691,46.0996]
[1645897595775,1.79637171,90.828,90.692,2.90348828]
[1645897596075,1.69502215,90.825,90.694,111.78395881]
[1645897596274,4.407,90.824,90.694,109.5]
[1645897596474,15.98,90.81,90.695,3.06173238]
[1645897596675,5.81931602,90.809,90.695,3.06173238]
[1645897597375,22.8523,90.808,90.695,3.06173238]
[1645897597574,16.5393,90.79,90.695,3.06173238]
[1645897597976,16.5393,90.79,90.696,4.408]
[1645897598777,16.5393,90.79,90.695,3.06173238]
[1645897598976,37.7593,90.79,90.695,3.06173238]
[1645897603285,4.408,90.789,90.695,3.06173238]
[1645897603484,16.5403,90.78,90.695,3.06173238]
[1645897604491,109.5,90.779,90.695,3.06173238]
[1645897604692,16.5449,90.76,90.682,2.81536454]
[1645897604892,40.6149,90.76,90.661,3.02610926]
[1645897605090,109.5,90.759,90.661,3.02610926]
[1645897605290,4.409,90.758,90.655,112.2]
[1645897605491,6.11211705,90.758,90.656,2.8216161]
[1645897605697,7.56688946,90.758,90.656,2.8216161]
[1645897605891,1.75273508,90.757,90.656,2.8216161]
[1645897606091,4.409,90.756,90.656,2.8216161]
[1645897606493,16.5479,90.74,90.656,2.8216161]
[1645897606692,38.8479,90.74,90.656,2.8216161]
[1645897607696,38.8479,90.74,90.641,2.93114992]
[1645897607997,16.5534,90.71,90.625,2.73046069]
[1645897608200,15.98,90.7,90.625,2.73046069]
[1645897609597,32.5347,90.7,90.625,2.73046069]
[1645897611813,47.3131,90.716,90.625,2.73046069]
[1645897614913,47.3131,90.716,90.63,16.5499]
[1645897615115,47.3131,90.716,90.631,2.56180054]
[1645897615313,47.3131,90.716,90.632,0.25]
[1645897615917,47.3131,90.716,90.64,16.5481]
[1645897616114,47.3131,90.716,90.641,58.09692023]
[1645897616317,47.3131,90.716,90.642,2.79265028]
[1645897617615,47.3131,90.716,90.661,2.4123259]
[1645897617816,2.74678921,90.742,90.661,2.4123259]
[1645897618019,32.5268,90.75,90.661,2.4123259]
[1645897618216,4.41,90.749,90.661,2.4123259]
[1645897618821,15.98,90.73,90.661,2.4123259]
[1645897619017,4.61782463,90.736,90.642,2.88021636]
[1645897619219,0.20782463,90.735,90.642,2.88021636]
[1645897619419,28.33837828,90.735,90.642,2.88021636]
[1645897619918,16.5492,90.73,90.642,2.88021636]
[1645897621122,32.5292,90.73,90.62,16.5511]
[1645897621323,29.64436458,90.729,90.62,16.5511]
[1645897621522,16.5511,90.72,90.621,3.00043101]
[1645897621922,23.1063,90.719,90.621,109.5]
[1645897622125,23.1063,90.719,90.622,60.38448103]
[1645897622324,23.1063,90.719,90.623,109.5]
[1645897622523,23.1063,90.719,90.624,2.70511409]
[1645897622725,23.1063,90.719,90.631,109.5]
[1645897622924,23.1063,90.719,90.632,2.38580141]
[1645897623528,23.1063,90.719,90.622,57.60240292]
[1645897623725,23.1063,90.719,90.623,112.42596331]
[1645897623924,23.1063,90.719,90.624,2.47124081]
[1645897624622,23.1063,90.719,90.641,2.98732898]
[1645897627225,23.1063,90.719,90.641,16.3778]
[1645897627425,23.1063,90.719,90.642,2.5822007]
[1645897633132,23.1063,90.719,90.622,57.60240292]
[1645897633133,23.1063,90.719,90.63,16.5511]
[1645897633537,23.1063,90.719,90.631,2.84372012]
[1645897634232,23.1063,90.719,90.623,2.476118]
[1645897635834,16.5522,90.71,90.623,2.476118]
[1645897636235,109.5,90.709,90.615,2.30958254]
[1645897636434,4.41,90.708,90.604,2.33493184]
[1645897636636,109.5,90.707,90.604,2.33493184]
[1645897636834,109.5,90.705,90.59,2.34353779]
[1645897637036,109.5,90.689,90.592,51.07558232]
[1645897637234,4.413,90.688,90.593,2.79685839]
[1645897637435,109.5,90.687,90.593,2.79685839]
[1645897637754,4.413,90.686,90.593,2.79685839]
[1645897637935,5.24429852,90.686,90.593,2.79685839]
[1645897638136,109.5,90.685,90.593,2.79685839]
[1645897638335,4.413,90.684,90.572,2.26748728]
[1645897638541,16.5617,90.66,90.572,2.26748728]
[1645897638739,48.5457,90.659,90.572,2.26748728]
[1645897638938,48.5457,90.659,90.58,16.5589]
[1645897639138,2.12331532,90.675,90.581,47.32623153]
[1645897639338,48.5457,90.674,90.582,2.31892456]
[1645897639740,48.5457,90.674,90.582,111.81892456]
[1645897639937,48.5457,90.674,90.583,2.68186985]
[1645897640139,16.81129852,90.71,90.591,109.5]
[1645897640342,47.4511,90.709,90.601,109.5]
[1645897640542,47.4511,90.709,90.603,109.5]
[1645897640741,4.412,90.708,90.604,2.33068442]
[1645897640943,7.15878921,90.708,90.604,2.33068442]
[1645897641145,16.5541,90.7,90.604,2.33068442]
[1645897641346,4.412,90.699,90.598,2.53724175]
[1645897641541,31.7369224,90.699,90.598,2.53724175]
[1645897641743,2.12331532,90.698,90.598,2.53724175]
[1645897641944,52.17603772,90.698,90.598,2.53724175]
[1645897642146,4.412,90.697,90.598,2.53724175]
[1645897642343,31.7369224,90.697,90.598,2.53724175]
[1645897642544,16.558,90.68,90.598,2.53724175]
[1645897642746,23.1235,90.679,90.598,2.53724175]
[1645897645050,23.1235,90.679,90.593,2.65459299]
[1645897645261,23.9579,90.678,90.593,2.65459299]
[1645897646466,16.5596,90.67,90.593,2.65459299]
[1645897646664,23.9579,90.678,90.593,2.65459299]
[1645897647164,23.9579,90.678,90.593,112.15459299]
[1645897647564,23.9579,90.678,90.594,2.26177894]
[1645897649568,23.9579,90.678,90.598,112.2]
[1645897649768,23.9579,90.678,90.599,2.40372416]
[1645897653072,23.9579,90.678,90.593,2.56218031]
[1645897653472,16.5598,90.67,90.593,2.56218031]
[1645897655577,23.9579,90.678,90.593,112.06218031]
[1645897655773,23.9579,90.678,90.594,2.77447495]
[1645897656577,23.9579,90.678,90.6,16.5551]
[1645897656775,23.9579,90.678,90.601,2.83137436]
[1645897657775,23.9579,90.678,90.592,23.3911]
[1645897657974,23.9579,90.678,90.593,3.08553701]
[1645897661080,16.5594,90.67,90.593,3.08553701]
[1645897661279,39.0994,90.67,90.593,3.08553701]
[1645897661681,66.4243224,90.67,90.593,3.08553701]
[1645897661878,66.4243224,90.67,90.571,3.042236]
[1645897662079,4.414,90.669,90.571,3.042236]
[1645897662278,16.5628,90.66,90.572,59.70708705]
[1645897662479,16.5628,90.66,90.573,2.70038774]
[1645897662679,23.9958,90.659,90.573,2.70038774]
[1645897665781,16.5632,90.65,90.573,2.70038774]
[1645897666581,32.5432,90.65,90.573,2.70038774]
[1645897667181,16.5658,90.64,90.573,47.63606825]
[1645897667481,24.4494,90.639,90.573,2.70038774]
[1645897668282,24.4494,90.639,90.574,53.16775076]
[1645897668481,24.4494,90.639,90.575,3.08615406]
[1645897670889,24.4494,90.639,90.569,2.49094774]
[1645897671688,24.4494,90.639,90.57,59.33748012]
[1645897671890,24.4494,90.639,90.571,2.92885491]
[1645897673091,24.4494,90.639,90.571,109.5]
[1645897673389,24.4494,90.639,90.572,2.74544302]
[1645897682323,148.7453,90.738,90.572,2.74544302]
[1645897682324,16.5604,90.67,90.581,109.5]
[1645897682524,24.133,90.669,90.584,3.0155734]
[1645897683224,24.133,90.669,90.596,112.2]
[1645897683424,24.133,90.669,90.61,16.5552]
[1645897683725,24.133,90.669,90.611,2.276921]
[1645897683923,24.9939,90.689,90.611,2.276921]
[1645897684326,24.9939,90.689,90.6,2.98058418]
[1645897684625,24.9939,90.689,90.601,0.25]
[1645897684825,24.9939,90.689,90.622,2.56010878]
[1645897685225,23.7036,90.698,90.602,2.74678921]
[1645897685426,23.7036,90.698,90.603,0.25]
[1645897685827,23.7036,90.698,90.605,109.5]
[1645897686025,23.7036,90.698,90.606,2.88149954]
[1645897686327,23.7036,90.698,90.608,2.95500162]
[1645897686527,23.7036,90.698,90.63,16.5517]
[1645897686727,23.7036,90.698,90.631,2.82046655]
[1645897689729,23.7036,90.698,90.624,16.5047]
[1645897690031,23.7036,90.698,90.626,47.7960393]
[1645897690230,23.7036,90.698,90.627,2.27520518]
[1645897690630,23.7036,90.698,90.621,3.10223235]
[1645897691634,23.7036,90.698,90.621,56.59812212]
[1645897691832,23.7036,90.698,90.622,3.01626788]
[1645897695537,23.7036,90.698,90.623,55.93272726]
[1645897695735,23.7036,90.698,90.624,2.7090233]
[1645897696135,16.5558,90.69,90.614,2.97027981]
[1645897697536,109.5,90.669,90.577,4.412]
[1645897697737,175.34,90.667,90.559,112.2]
[1645897697935,1.45157289,90.658,90.56,2.73357656]
[1645897698137,109.5,90.656,90.559,112.2]
[1645897698336,109.5,90.654,90.562,2.36882472]
[1645897698538,16.5698,90.62,90.562,2.36882472]
[1645897698735,23.3798,90.62,90.562,2.36882472]
[1645897700336,16.5698,90.62,90.562,2.36882472]
[1645897705039,24.7198,90.62,90.559,112.2]
[1645897705239,16.5746,90.61,90.559,112.2]
[1645897705439,16.5746,90.61,90.56,2.96087119]
[1645897705842,16.5746,90.61,90.559,112.2]
[1645897706444,16.5746,90.61,90.56,10.85480539]
[1645897706641,32.5546,90.61,90.56,10.85480539]
[1645897710650,4.415,90.609,90.523,2.51640992]
[1645897710850,16.5734,90.6,90.523,2.51640992]
[1645897713658,16.5734,90.6,90.524,10.85480539]
[1645897715862,32.5534,90.6,90.524,10.85480539]
[1645897716666,32.5534,90.6,90.511,10.85480539]
[1645897717666,32.5534,90.6,90.511,13.7027226]
[1645897719368,32.5534,90.6,90.52,16.5732]
[1645897719567,32.5534,90.6,90.521,2.70973242]
[1645897719968,32.5534,90.6,90.512,7.44607691]
[1645897720384,32.5534,90.6,90.521,10.85480539]
[1645897721380,16.5734,90.6,90.521,10.85480539]
[1645897721582,16.5734,90.6,90.53,16.5714]
[1645897721784,16.5734,90.6,90.531,2.52380188]
[1645897721981,46.0865,90.609,90.531,2.52380188]
[1645897722481,4.416,90.629,90.54,16.5698]
[1645897722682,47.8001,90.639,90.542,54.74765231]
[1645897722882,47.8001,90.639,90.543,109.5]
[1645897723083,47.8001,90.639,90.545,109.5]
[1645897723283,24.2457,90.666,90.551,109.5]
[1645897723483,22.8763,90.665,90.553,109.5]
[1645897723682,22.8763,90.665,90.554,3.36865311]
[1645897723882,22.8763,90.665,90.555,4.414]
[1645897724082,22.8763,90.665,90.561,109.5]
[1645897724286,22.8763,90.665,90.563,109.5]
[1645897724486,22.8763,90.665,90.564,2.76834072]
[1645897724683,22.8763,90.665,90.565,4.414]
[1645897725083,22.8763,90.665,90.565,113.914]
[1645897725284,22.8763,90.665,90.565,116.66078921]
[1645897725483,22.8763,90.665,90.59,16.5598]
[1645897725685,22.8763,90.665,90.591,59.58686041]
[1645897725984,22.8763,90.665,90.592,2.85713668]
[1645897727187,22.8763,90.665,90.601,2.9174166]
[1645897729191,22.8763,90.665,90.602,10.85480539]
[1645897730394,22.8763,90.665,90.61,16.5569]
[1645897730595,22.8763,90.665,90.611,2.46092909]
[1645897730794,16.5581,90.68,90.611,2.46092909]
[1645897730995,16.5581,90.68,90.602,10.85480539]
[1645897731194,32.5381,90.68,90.602,10.85480539]
[1645897732195,24.1678,90.679,90.602,10.85480539]
[1645897732497,24.1678,90.679,90.6,16.5587]
[1645897732696,24.1678,90.679,90.601,2.31123252]
[1645897732894,21.96223551,90.679,90.601,2.31123252]
[1645897733295,26.37523551,90.679,90.601,2.31123252]
[1645897733495,16.56,90.67,90.601,2.31123252]
[1645897734700,23.3607,90.678,90.601,2.31123252]
[1645897735600,23.3607,90.678,90.611,2.50149001]
[1645897736002,23.3607,90.678,90.603,7.0495713]
[1645897736399,21.96223551,90.679,90.604,2.87654698]
[1645897736602,21.96223551,90.679,90.621,49.61304752]
[1645897736799,15.98,90.72,90.622,2.707375]
[1645897737001,15.98,90.72,90.621,46.68993661]
[1645897737002,46.7653,90.714,90.624,2.26072689]
[1645897738604,46.7653,90.714,90.63,16.5525]
[1645897738804,46.7653,90.714,90.631,2.25595702]
[1645897739305,109.5,90.713,90.631,2.25595702]
[1645897739503,15.98,90.71,90.631,2.25595702]
[1645897740506,32.5332,90.71,90.631,2.25595702]
[1645897742004,32.5332,90.71,90.632,10.85480539]
[1645897743705,109.5,90.709,90.632,10.85480539]
[1645897743906,16.5559,90.7,90.632,10.85480539]
[1645897744105,24.8313,90.699,90.632,10.85480539]
[1645897744306,109.5,90.698,90.632,10.85480539]
[1645897744505,24.8313,90.699,90.632,10.85480539]
[1645897744707,24.8313,90.699,90.633,45.80892998]
[1645897744906,24.8313,90.699,90.634,2.80245041]
[1645897747709,24.8313,90.699,90.635,53.42230527]
[1645897747908,24.8313,90.699,90.636,2.93018584]
[1645897750411,24.8313,90.699,90.635,10.85480539]
[1645897751711,24.8313,90.699,90.634,3.08916558]
[1645897753718,24.8313,90.699,90.632,10.85480539]
[1645897753719,109.5,90.698,90.632,10.85480539]
[1645897754112,24.8313,90.699,90.632,10.85480539]
[1645897754812,24.8313,90.699,90.63,2.50429532]
[1645897755414,24.8313,90.699,90.62,10.85480539]
[1645897755614,24.8313,90.699,90.62,27.41000539]
[1645897755815,24.8313,90.699,90.621,2.92268942]
[1645897756220,24.8313,90.699,90.622,54.20061461]
[1645897756415,24.8313,90.699,90.623,2.92840434]
[1645897757816,24.8313,90.699,90.631,2.49036001]
[1645897758716,4.41,90.713,90.631,2.49036001]
[1645897758919,4.41,90.713,90.624,10.85480539]
[1645897758920,23.5618,90.714,90.641,2.83548611]
[1645897759317,23.5618,90.714,90.625,5.06307981]
[1645897759517,23.5618,90.714,90.625,114.56307981]
[1645897759717,23.5618,90.714,90.626,5.35756787]
[1645897759918,23.5618,90.714,90.632,2.97105668]
[1645897760122,23.5618,90.714,90.634,109.5]
[1645897760319,23.5618,90.714,90.635,2.38037018]
[1645897760518,23.5618,90.714,90.651,50.54761361]
[1645897760719,23.5618,90.714,90.652,2.38508378]
[1645897761122,23.5618,90.714,90.652,13.23988917]
[1645897762839,23.5618,90.714,90.66,16.5478]
[1645897763039,23.5618,90.714,90.661,2.27600712]
[1645897763438,16.5482,90.74,90.661,2.27600712]
[1645897763640,4.41,90.749,90.662,5.00071765]
[1645897763939,24.175,90.782,90.671,109.5]
[1645897764143,3.408,90.781,90.674,3.01130449]
[1645897764338,24.175,90.782,90.674,3.01130449]
[1645897764538,24.175,90.782,90.675,30.48674705]
[1645897764740,24.175,90.782,90.676,2.47823525]
[1645897764940,24.175,90.782,90.677,0.9999]
[1645897765341,24.175,90.782,90.678,2.74678921]
[1645897765539,24.175,90.782,90.7,16.5396]
[1645897765742,24.175,90.782,90.701,2.44963508]
[1645897765939,24.175,90.782,90.701,5.19642429]
[1645897766943,24.175,90.782,90.71,16.5389]
[1645897767141,24.175,90.782,90.711,62.05839095]
[1645897767342,24.175,90.782,90.712,2.7431871]
[1645897767544,24.175,90.782,90.713,109.5]
[1645897767742,24.175,90.782,90.714,2.92541195]
[1645897767943,24.175,90.782,90.715,0.9997]
[1645897768143,24.175,90.782,90.714,5.67220116]
[1645897768443,24.175,90.782,90.72,16.5368]
[1645897768642,24.175,90.782,90.721,3.01174765]
[1645897769249,24.175,90.782,90.715,2.74678921]
[1645897770552,24.175,90.782,90.731,3.02416782]
[1645897770748,24.1083,90.789,90.731,3.02416782]
[1645897773851,24.1083,90.789,90.732,10.85480539]
[1645897777358,24.1083,90.789,90.711,2.65992315]
[1645897777559,16.5398,90.78,90.717,10.85480539]
[1645897780258,16.5398,90.78,90.712,10.85480539]
[1645897780660,109.5,90.778,90.712,10.85480539]
[1645897780862,16.5442,90.76,90.712,10.85480539]
[1645897781060,21.9842,90.76,90.712,10.85480539]
[1645897781259,37.9642,90.76,90.712,10.85480539]
[1645897781460,137.64309048,90.759,90.712,10.85480539]
[1645897781859,109.5,90.757,90.712,10.85480539]
[1645897782064,4.408,90.756,90.712,10.85480539]
[1645897782261,28.14309048,90.756,90.712,10.85480539]
[1645897782460,16.5485,90.75,90.712,10.85480539]
[1645897782661,4.408,90.749,90.712,10.85480539]
[1645897783264,4.408,90.749,90.663,10.85480539]
[1645897783462,22.599,90.748,90.663,10.85480539]
[1645897783661,4.409,90.747,90.663,10.85480539]
[1645897784463,16.548,90.74,90.663,10.85480539]
[1645897785766,4.41,90.739,90.663,10.85480539]
[1645897787466,16.548,90.74,90.663,10.85480539]
[1645897787867,32.528,90.74,90.663,10.85480539]
[1645897790967,32.528,90.74,90.67,16.5459]
[1645897791167,32.528,90.74,90.671,2.86498429]
[1645897791367,32.528,90.74,90.671,13.71978968]
[1645897797982,32.528,90.74,90.671,10.85480539]
[1645897798584,32.528,90.74,90.659,10.85480539]
[1645897799584,4.41,90.739,90.659,10.85480539]
[1645897801184,16.549,90.73,90.659,10.85480539]
[1645897801387,23.7882,90.729,90.66,16.5478]
[1645897801586,23.7882,90.729,90.661,2.47171096]
[1645897801986,23.7882,90.729,90.661,13.32651635]
[1645897804903,23.7882,90.729,90.661,10.85480539]
[1645897805302,23.7882,90.729,90.652,10.85480539]
[1645897807105,16.5507,90.72,90.652,10.85480539]
[1645897810409,23.7882,90.729,90.652,10.85480539]
[1645897813014,23.7882,90.729,90.66,16.548]
[1645897813213,23.7882,90.729,90.661,2.28179199]
[1645897813613,23.7882,90.729,90.652,10.85480539]
[1645897813812,23.7882,90.729,90.662,10.85480539]
[1645897814614,23.7882,90.729,90.671,2.91121068]
[1645897816719,23.7882,90.729,90.662,10.85480539]
[1645897816919,29.9582,90.729,90.662,10.85480539]
[1645897817521,29.9582,90.729,90.672,10.85480539]
[1645897818122,109.5,90.728,90.672,10.85480539]
[1645897818426,29.9582,90.729,90.672,10.85480539]
[1645897818427,175.34,90.726,90.672,10.85480539]
[1645897818621,109.5,90.719,90.607,2.25322325]
[1645897818821,109.5,90.709,90.607,22.8597]
[1645897819023,109.5,90.707,90.608,2.99618809]
[1645897819422,4.412,90.706,90.608,2.99618809]
[1645897819621,34.55288381,90.706,90.608,2.99618809]
[1645897819820,109.5,90.705,90.608,2.99618809]
[1645897820021,109.5,90.699,90.608,2.99618809]
[1645897820323,109.5,90.679,90.579,22.735]
[1645897820522,109.5,90.669,90.58,2.97064878]
[1645897820721,51.8068,90.668,90.58,2.97064878]
[1645897820925,47.3938,90.668,90.58,2.97064878]
[1645897821122,47.3938,90.668,90.582,2.71236705]
[1645897821324,16.5636,90.66,90.582,2.71236705]
[1645897822622,16.5636,90.66,90.591,2.78856152]
[1645897825923,16.5636,90.66,90.591,19.17786152]
[1645897826123,47.3938,90.668,90.591,16.3893]
[1645897826323,47.3938,90.668,90.592,3.0944596]
[1645897827025,15.98,90.67,90.6,16.5589]
[1645897827226,23.2797,90.69,90.6,16.5589]
[1645897827426,39.8374,90.69,90.601,2.97258496]
[1645897827625,39.8374,90.69,90.6,16.5589]
[1645897827626,39.8374,90.69,90.592,109.5]
[1645897827826,39.8374,90.69,90.593,2.70362044]
[1645897828126,39.8374,90.69,90.61,16.556]
[1645897828327,16.5583,90.68,90.611,2.72638155]
[1645897828527,16.5583,90.68,90.609,55.01815517]
[1645897828727,22.9964,90.679,90.61,3.06949378]
[1645897829630,22.9964,90.679,90.592,2.52831512]